Cogmind - Beta 16 @@@ ROGUE MODE // 2025.11.03 @ 23:25:50 Player: Palikka Result: Destroyed by H-61 Shepherd with Heavy Assault Cannon Performance ------------- Evolutions (4) 2000 Regions Visited (13) 2600 Robots Destroyed (92) 460 Value Destroyed (3492) 3492 Prototype IDs (7) 140 Alien Tech Used (0) 0 Bonus (708) 708 TOTAL SCORE: 9400 Bonus ------- High Alert Combat Kills 50 Follower Combat Kills 583 Met Imprinter 300 Friendly Fire -225 Cogmind --------- Core Integrity 0/850 Matter 205/300 Energy 93/100 System Corruption 2% Temperature Cool (0) Movement Core (50) Location -6/Factory Parts ------- > --- POWER (1) -------- (None) > --- PROPULSION (6) --- (None) > --- UTILITY (6) ------ Enhanced Optical Array > --- WEAPON (2) ------- (None) > --- INVENTORY (5) ---- IFF Parser Improved Hacking Suite Heavy Plasma Cannon Hypervelocity Gauss Rifle Gauss Cannon Peak State ------------ > --- POWER ------------ Angular Momentum Engine > --- PROPULSION ------- Aluminum Leg Titanium Leg Flexi-carbon Leg Flexi-carbon Leg Flexi-carbon Leg Armored Leg > --- UTILITY ---------- Advanced Heat Sink High-capacity Storage Unit Enhanced Optical Array Improved Signal Interpreter Advanced Targeting Computer Layered Medium Armor Plating > --- WEAPON ----------- Compact Ion Cannon Antimatter Cannon > --- INVENTORY -------- Fission Core Coolant Injector Coolant Injector Matter Compressor Structural Scanner IFF Parser Improved Terrain Scan Processor Advanced Targeting Computer Hardened Light Armor Plating Improved Medium Armor Plating Improved Hacking Suite Cooled Particle Cannon Heavy Plasma Cannon Hypervelocity Gauss Rifle Gauss Cannon Bore Cannon Bore Cannon Bore Cannon Long-range Missile Launcher Powered Hammer [Rating: 71] Favorites ----------- Power Angular Momentum Engine Engine Angular Momentum Engine Power Core Light Nuclear Core Propulsion Aluminum Leg Leg Aluminum Leg Wheel Compact Wheel Utility High-capacity Storage Unit Device Structural Scanner Storage High-capacity Storage Unit Processor Advanced Targeting Computer Protection Hardened Medium Armor Plating Weapon Bore Cannon Energy Gun EM Pulse Gun Energy Cannon Cooled Particle Cannon Ballistic Gun Light Assault Rifle Ballistic Cannon Bore Cannon Launcher Grenade Launcher Build | -11 -10 -10 -10 -9 -8 -7 -7 -7 -7 -7 -7 -6 -6 ------- Run | Yrd Mat Min Exi Min Mat Fac Was Fac Low Low Zio Pro Fac Slots Evolved 8 | . . . . . 4 2 . . . . . . 2 Power . | . . . . . . . . . . . . . . Propulsion 4 | . . . . . 2 1 . . . . . . 1 Utility 4 | . . . . . 2 1 . . . . . . 1 Weapon . | . . . . . . . . . . . . . . Parts Attached 102 | 7 7 3 . . 33 3 4 10 1 5 3 3 23 Power 13 | 2 1 . . . 5 . 1 1 . 1 . 1 1 Engine 9 | 2 1 . . . 2 . 1 . . 1 . 1 1 Core 4 | . . . . . 3 . . 1 . . . . . Reactor . | . . . . . . . . . . . . . . Propulsion 34 | 2 1 2 . . 14 1 . 5 . . . 2 7 Treads . | . . . . . . . . . . . . . . Leg 32 | 2 1 2 . . 14 1 . 5 . . . 2 5 Wheel 1 | . . . . . . . . . . . . . 1 Hover . | . . . . . . . . . . . . . . Flight 1 | . . . . . . . . . . . . . 1 Utility 32 | 1 3 1 . . 9 2 1 2 1 3 . . 9 Device 14 | . 1 1 . . 4 . 1 . 1 2 . . 4 Storage 4 | 1 2 . . . . . . 1 . . . . . Processor 5 | . . . . . 1 1 . . . . . . 3 Hackware . | . . . . . . . . . . . . . . Protection 9 | . . . . . 4 1 . 1 . 1 . . 2 Artifact . | . . . . . . . . . . . . . . Weapon 23 | 2 2 . . . 5 . 2 2 . 1 3 . 6 Energy Gun 2 | 1 . . . . . . . 1 . . . . . Energy Cannon 4 | . . . . . . . . 1 . . . . 3 Ballistic Gun 8 | 1 2 . . . 4 . . . . . . . 1 Ballistic Cannon 6 | . . . . . 1 . 1 . . . 3 . 1 Launcher 3 | . . . . . . . 1 . . 1 . . 1 Special Weapon . | . . . . . . . . . . . . . . Impact Weapon . | . . . . . . . . . . . . . . Slashing Weapon . | . . . . . . . . . . . . . . Piercing Weapon . | . . . . . . . . . . . . . . Special Melee Weapon . | . . . . . . . . . . . . . . Unidentified Prototypes 5 | . 1 . . . . . . 1 . . . . 3 Parts Lost 30 | . . . . . 10 . . . . 3 . . 17 Power 3 | . . . . . 1 . . . . 1 . . 1 Propulsion 12 | . . . . . 3 . . . . . . . 9 Utility 10 | . . . . . 3 . . . . 2 . . 5 Weapon 5 | . . . . . 3 . . . . . . . 2 Highest Loss Streak 11 | . . . . . 2 . . . . 3 . . 11 To Critical Strikes . | . . . . . . . . . . . . . . Average Backups 17 | 1 10 15 14 15 14 14 15 19 20 18 19 19 19 Power 1 | . 1 3 2 1 1 1 1 1 2 1 1 1 1 Propulsion 1 | . 2 3 3 3 1 . 1 1 1 1 1 1 . Utility 7 | . 1 3 3 4 5 7 8 8 9 8 7 8 9 Weapon 7 | . 4 5 5 5 5 5 5 7 8 8 9 8 8 Tool/Special . | . . . . . . . . . . . . . . Unused Backups 53 | . 5 1 1 2 7 3 4 5 . . . 1 24 Power 10 | . 3 . 1 1 . . 1 2 . . . . 2 Propulsion 1 | . . 1 . . . . . . . . . . . Utility 22 | . 1 . . 1 3 2 . 2 . . . 1 12 Weapon 19 | . 1 . . . 3 1 3 1 . . . . 10 Tool/Special 1 | . . . . . 1 . . . . . . . . Average Slot Usage (%) 97 | . 97 100 88 100 98 99 100 100 100 99 93 100 97 Engine 6 | . 14 14 14 14 4 . 2 5 . 3 7 7 5 Core 1 | . . . . . 3 7 4 1 7 3 . . . Leg 35 | . 28 28 28 28 35 38 38 38 38 38 38 38 36 Device 12 | . 11 14 14 14 11 7 7 7 7 14 23 23 12 Storage 8 | . 14 14 14 14 9 7 7 7 7 7 7 7 5 Processor 8 | . . . . . 6 14 15 15 15 7 . . 13 Protection 5 | . . . . . 8 7 7 7 7 7 7 7 5 Energy Cannon 2 | . . . . . . . . 4 7 7 . . 5 Ballistic Gun 6 | . 23 28 17 28 16 7 7 2 . . . . . Ballistic Cannon 4 | . . . . . 1 7 3 7 7 4 8 14 5 Peak Build Rating 71 | 6 11 13 13 13 27 33 38 46 44 43 43 47 71 Average Rating 38 | 4 8 12 12 12 22 32 34 42 43 40 38 45 62 On Entrance 26 | . 6 11 13 13 12 27 33 38 44 44 38 43 44 Avg Prop Armor Cover (%) 6 | . . . . . . . . . . . . . 6 Naked Turns . | . . . . . . . . . . . . . . Heaviest Build 80 | 13 32 32 32 32 43 43 48 72 66 78 80 80 79 Greatest Support 103 | 20 20 20 20 20 47 62 62 69 69 69 69 79 103 Greatest Overweight (x) 4 | . 1 1 1 1 1 . . 1 . 1 1 1 4 Average Overweight (x) . | . . 1 1 1 . . . . . . . . . Largest Inventory Capacity 20 | 8 15 15 15 15 15 15 15 20 20 20 20 20 20 Average Capacity 17 | 7 12 15 15 15 15 15 15 19 20 20 20 20 19 Most Carried 20 | 2 15 15 15 15 15 15 15 20 20 20 20 20 20 Average Carried 17 | 1 10 14 14 15 14 14 15 19 20 18 19 19 19 Final Capacity 20 | 8 15 15 15 15 15 15 15 20 20 20 20 20 5 Final Carried 20 | 2 15 15 15 15 15 15 15 20 20 17 19 20 5 Class Distribution -------------------- 46% | Mutant 40% | Scavenger-Mutant 9% | Derelict-Mutant 3% | Skirmisher Dominant Class ---------------- Mutant | -10/Materials Scavenger-Mutant | -10/Mines Scavenger-Mutant | -10/Exiles Scavenger-Mutant | -9/Mines Scavenger-Mutant | -8/Materials Scavenger-Mutant | -7/Factory Scavenger-Mutant | -7/Waste Scavenger-Mutant | -7/Factory Scavenger-Mutant | -7/Lower Caves Mutant | -7/Lower Caves Derelict-Mutant | -7/Zion Derelict-Mutant | -6/Proximity Caves Mutant | -6/Factory Resources | -11 -10 -10 -10 -9 -8 -7 -7 -7 -7 -7 -7 -6 -6 ----------- Run | Yrd Mat Min Exi Min Mat Fac Was Fac Low Low Zio Pro Fac Matter Collected 4028 | 223 193 42 33 33 1008 51 197 516 23 86 30 338 1255 Remotely . | . . . . . . . . . . . . . . Salvage Created 3936 | . 271 57 . . 1025 51 524 580 56 18 . 171 1183 Parts 183 | . 16 3 . . 56 . 9 38 1 . . 6 54 Haulers Intercepted 3 | . 1 . . . 1 . . 1 . . . . . Recyclers Shooed 4 | . 1 . . . 1 . . . . . . . 2 Parts Field Recycled . | . . . . . . . . . . . . . . Retrieved Matter . | . . . . . . . . . . . . . . Parts Self-Destructed 18 | . . . . . . . . . 1 9 . 8 . Prevented 2 | . . . . . . . . . . . . 2 . Parts Restored . | . . . . . . . . . . . . . . Kills | -11 -10 -10 -10 -9 -8 -7 -7 -7 -7 -7 -7 -6 -6 ------- Run | Yrd Mat Min Exi Min Mat Fac Was Fac Low Low Zio Pro Fac Combat Hostiles Destroyed 72 | . 6 1 . . 23 1 2 8 . 1 . 7 23 Guns 28 | . 6 1 . . 21 . . . . . . . . Cannons 34 | . . . . . 2 1 2 8 . 1 . 3 17 AOE 8 | . . . . . . . . . . . . 4 4 Classes Destroyed 13 | . 4 . . . 3 . 2 3 . . . 1 . Worker 3 | . . . . . . . . 2 . . . . 1 Hauler 3 | . 1 . . . 1 . . 1 . . . . . Recycler 5 | . 1 . . . . . . 1 . . . . 3 Mechanic 2 | . . . . . 1 . . . . . . . 1 Watcher 6 | . . . . . . . . 2 . . . . 4 Swarmer 17 | . 4 . . . 3 . . . . 1 . 4 5 Grunt 24 | . 2 1 . . 13 . . 2 . . . 2 4 Duelist 1 | . . . . . . . . . . . . 1 . Sentry 14 | . . . . . 6 1 . 3 . . . . 4 Hunter 4 | . . . . . 1 . . . . . . . 3 Programmer 9 | . . . . . . . . 2 . . . . 7 Compactor 2 | . . . . . . . 2 . . . . . . Thug 1 | . . . . . . . . 1 . . . . . Martyr 1 | . . . . . . . 1 . . . . . . Best Kill Streak 5 | . 2 1 . . 3 1 1 3 . 1 . 4 5 Combat Bots Only 5 | . 2 1 . . 3 1 1 2 . 1 . 4 5 Max Kills in Single Turn 2 | . 1 1 . . 2 1 1 2 . 1 . 2 2 Gunslinging . | . . . . . . . . . . . . . . Exploded 2 | . . . . . . . . . . . . 2 2 Melee . | . . . . . . . . . . . . . . Uniques/NPCs Destroyed . | . . . . . . . . . . . . . . Combat | -11 -10 -10 -10 -9 -8 -7 -7 -7 -7 -7 -7 -6 -6 -------- Run | Yrd Mat Min Exi Min Mat Fac Was Fac Low Low Zio Pro Fac Hostile Shots Fired 649 | . 33 4 . . 181 18 . 97 . 3 . 48 265 Missed 196 | . 10 2 . . 40 7 . 33 . 1 . 14 89 Hits 453 | . 23 2 . . 141 11 . 64 . 2 . 34 176 Melee 11 | . . . . . 5 . . . . . . 6 . Projectile 442 | . 23 2 . . 136 11 . 64 . 2 . 28 176 Critical Strikes 18 | . 1 . . . 7 . . 2 . . . 2 6 Damage Taken 7460 | . 240 29 . . 2278 85 17 668 . 322 . 663 3158 Core 1358 | . 74 11 . . 255 . 17 39 . . . 103 859 Absorbed by Shields . | . . . . . . . . . . . . . . Regen/Repaired (Parts) 96 | . . . . . . . 18 78 . . . . . Core Remaining (%) 74 | 100 . . . 66 53 . . . . . . 77 . Volleys Fired 393 | 1 31 3 . . 127 2 15 42 4 40 . 26 102 Largest 2 | 2 2 2 . . 2 2 2 2 1 2 . 2 2 Hottest 123 | 60 60 40 . . 62 62 62 78 30 120 . 96 123 Shots Fired 659 | 2 62 6 . . 250 4 17 66 4 40 . 46 162 Gun 319 | 2 62 6 . . 242 2 2 . . . . . 3 Cannon 324 | . . . . . 8 2 10 66 4 39 . 40 155 Launcher 16 | . . . . . . . 5 . . 1 . 6 4 Special . | . . . . . . . . . . . . . . Kinetic 491 | 1 46 6 . . 250 4 12 36 . . . 40 96 Thermal 135 | . . . . . . . . 30 4 39 . . 62 Explosive 16 | . . . . . . . 5 . . 1 . 6 4 Electromagnetic 17 | 1 16 . . . . . . . . . . . . Robot Hit Streak 20 | 2 8 3 . . 19 20 11 15 5 1 . 5 16 Robot Miss Streak 9 | . 5 1 . . 4 . 2 4 . 1 . 9 4 Penetration Max 1 | . . . . . . . . . . . . 1 . Secondary Targets 1 | . 1 . . . . . . . . . . . . Max Gunslinging Chain 1 | . 1 . . . . . . . . . . . . Shots Hit Robots 368 | 2 36 4 . . 176 4 8 29 4 1 . 19 85 Core Hits 181 | . 16 3 . . 78 6 4 16 1 1 . 9 47 Critical Kills 11 | . . . . . . . 2 4 . . . 2 3 Critical Parts Destroyed 12 | . 1 . . . 1 . 1 4 . . . 5 . Critical Strikes 26 | . 1 . . . 1 . 4 8 . . . 7 5 Meltdown 2 | . . . . . . . . . . . . . 2 Destroy 22 | . 1 . . . 1 . 4 8 . . . 7 1 Blast 2 | . . . . . . . . . . . . . 2 Melee Attacks . | . . . . . . . . . . . . . . Impact . | . . . . . . . . . . . . . . Slashing . | . . . . . . . . . . . . . . Piercing . | . . . . . . . . . . . . . . Sneak Attacks . | . . . . . . . . . . . . . . Combat Hostiles . | . . . . . . . . . . . . . . Follow-up Attacks . | . . . . . . . . . . . . . . Damage Inflicted 8896 | 21 447 45 . . 2422 103 608 884 107 56 . 717 3486 Guns 2835 | 21 396 45 . . 2299 33 18 . . . . . 23 Cannons 4441 | . . . . . 123 70 168 788 107 56 . 325 2804 Explosions 1613 | . 44 . . . . . 422 96 . . . 392 659 Melee . | . . . . . . . . . . . . . . Ramming 7 | . 7 . . . . . . . . . . . . Kinetic 5233 | 8 271 45 . . 2422 103 186 289 . . . 325 1584 Thermal 2217 | . 44 . . . . . . 595 107 56 . . 1415 Explosive 1301 | . . . . . . . 422 . . . . 392 487 Electromagnetic 138 | 13 125 . . . . . . . . . . . . Impact . | . . . . . . . . . . . . . . Slashing . | . . . . . . . . . . . . . . Piercing . | . . . . . . . . . . . . . . Highest Corruption 10 | . 1 1 1 1 . . . 1 1 10 10 . 2 Average Corruption 2 | . 1 1 1 1 . . . 1 1 5 10 . 1 Corruption Purged 2 | . . . . . . . . . . . . . 2 Corruption Blocked . | . . . . . . . . . . . . . . Effects 58 | . . 1 3 1 . . . . 2 20 1 . 30 Message Errors 12 | . . 1 . . . . . . 1 6 . . 4 Matter Fused 16 | . . . 2 1 . . . . 1 3 . . 9 Energy Discharges 4 | . . . . . . . . . . 3 . . 1 Parts Fused 1 | . . . . . . . . . . . . . 1 Data Loss (minor) 14 | . . . . . . . . . . 3 . . 11 Data Loss (major) 5 | . . . 1 . . . . . . 3 1 . . Misfires 2 | . . . . . . . . . . . . . 2 Alerts 2 | . . . . . . . . . . 1 . . 1 Weapon Failures 2 | . . . . . . . . . . 1 . . 1 Overload Shots 3 | . . . . . . . . . . 1 . . 2 Overflow Damage 206 | . . . . . . . . 56 17 . . 21 112 Projectiles 129 | . . . . . . . . . 17 . . . 112 Explosions 77 | . . . . . . . . 56 . . . 21 . Melee . | . . . . . . . . . . . . . . Knockbacks 29 | . . . . . 7 . . 2 . . . 7 13 Impact . | . . . . . . . . . . . . . . Kinetic 28 | . . . . . 7 . . 2 . . . 7 12 Secondary 1 | . . . . . . . . . . . . . 1 Self-Inflicted Damage 138 | . 15 . . . . . . . . . . . 123 Shots 3 | . 1 . . . . . . . . . . . 2 Rammed . | . . . . . . . . . . . . . . Targets Rammed 1 | . 1 . . . . . . . . . . . . Kicked 1 | . 1 . . . . . . . . . . . . Crushed . | . . . . . . . . . . . . . . Highest Temperature 102 | 20 58 . . . 10 13 . 4 . . . 1 102 Average Temperature 28 | 15 23 . . . 6 13 . 4 . . . 1 36 Received Heat Transfer 1779 | . 63 15 . . 990 24 . 120 . . . 72 495 Siege Activations . | . . . . . . . . . . . . . . Martial Activations . | . . . . . . . . . . . . . . Shielding Activations . | . . . . . . . . . . . . . . Robots Disrupted . | . . . . . . . . . . . . . . Combat Hostiles . | . . . . . . . . . . . . . . Robots Corrupted . | . . . . . . . . . . . . . . Combat Hostiles . | . . . . . . . . . . . . . . Parts Fried . | . . . . . . . . . . . . . . Impact Corruptions . | . . . . . . . . . . . . . . Robots Melted 2 | . . . . . . . . . . . . . 2 Combat Hostiles 2 | . . . . . . . . . . . . . 2 Parts Melted 11 | . . . . . . . . . . . . . 11 Heat Transferred 2742 | . 100 . . . . . . 716 148 50 . . 1728 Parts Sabotaged . | . . . . . . . . . . . . . . Parts Stolen . | . . . . . . . . . . . . . . Parts Stripped . | . . . . . . . . . . . . . . Power Chain Reactions 1 | . 1 . . . . . . . . . . . . Alert | -11 -10 -10 -10 -9 -8 -7 -7 -7 -7 -7 -7 -6 -6 ------- Run | Yrd Mat Min Exi Min Mat Fac Was Fac Low Low Zio Pro Fac Maximum Alert Level 2 | . . . . . . . . 2 . . . . 2 Low Security (%) 82 | 100 100 100 . 100 100 100 100 41 . . . . 83 Level 1 14 | . . . . . . . . 43 . . . . 15 Level 2 3 | . . . . . . . . 14 . . . . . Level 3 . | . . . . . . . . . . . . . . Level 4 . | . . . . . . . . . . . . . . Level 5 . | . . . . . . . . . . . . . . High Security . | . . . . . . . . . . . . . . Max Security . | . . . . . . . . . . . . . . Peak Influence 478 | . 42 30 . . 151 69 23 431 . . . . 478 Initial 59 | . . . . . . 59 3 . . . . . 46 Average 92 | . 6 8 . . 71 41 3 210 . . . . 94 Influence Increases 3009 | . 170 30 . . 655 30 44 832 5 20 . 297 926 Destroy 0b10 Robot/C 1740 | . 120 20 . . 460 20 . 420 . 20 . 220 460 Destroy 0b10 Robot/NC 100 | . 10 . . . 10 . . 30 5 . . . 45 Destroy Leader 468 | . 22 10 . . 112 10 . 96 . . . 40 178 Allied During Kill 171 | . . . . . . . . 134 . . . 37 . Successful Hack 50 | . 14 . . . 9 . . 27 . . . . . Disable Machine 165 | . . . . . 15 . . 60 . . . . 90 Destroy Structure 180 | . 4 . . . 4 . 44 35 . . . . 93 Partial Spotted 30 | . . . . . . . . 15 . . . . 15 Lose Combat Pursuer 105 | . . . . . 45 . . 15 . . . . 45 Influence Decreases 2622 | . 170 30 . . 523 153 53 427 357 73 . 223 613 Entered New Map 269 | . . . . . . 73 6 . 151 11 . . 28 Time Decay 1953 | . 170 30 . . 433 80 47 337 206 62 . 163 425 Lost Part 250 | . . . . . 90 . . . . . . . 160 Lost Ally 150 | . . . . . . . . 90 . . . 60 . Squads Dispatched 23 | . 2 . . . 2 . . 8 . . . . 11 Investigation 2 | . . . . . . . . 1 . . . . 1 Extermination 9 | . . . . . . . . 3 . . . . 6 Reinforcement 9 | . 2 . . . 2 . . 1 . . . . 4 Assault . | . . . . . . . . . . . . . . Garrison 3 | . . . . . . . . 3 . . . . . Intercept . | . . . . . . . . . . . . . . Searches Triggered . | . . . . . . . . . . . . . . Construction Impeded 2 | . . . . . . . . 1 . . . . 1 Haulers Reinforced . | . . . . . . . . . . . . . . Active Scanning Responses . | . . . . . . . . . . . . . . Cargo Convoy Interrupts 1 | . . . . . . . . . . . . . 1 Stealth | -11 -10 -10 -10 -9 -8 -7 -7 -7 -7 -7 -7 -6 -6 --------- Run | Yrd Mat Min Exi Min Mat Fac Was Fac Low Low Zio Pro Fac Distress Signals 3 | . . . . . 3 . . . . . . . . Communications Jammed . | . . . . . . . . . . . . . . Distress Signals . | . . . . . . . . . . . . . . Times Spotted 153 | . 18 2 . . 51 1 6 24 . 1 . 12 38 Peak Tracking Total 7 | . 4 2 . . 6 1 3 4 . 1 . 4 7 Tactical Retreats 6 | . . . . . 3 . . 1 . . . . 2 Traps | -11 -10 -10 -10 -9 -8 -7 -7 -7 -7 -7 -7 -6 -6 ------- Run | Yrd Mat Min Exi Min Mat Fac Was Fac Low Low Zio Pro Fac Traps Triggered 11 | . 1 . . . 2 1 . 1 . . . . 6 Indirectly . | . . . . . . . . . . . . . . Trap Hack Attempts . | . . . . . . . . . . . . . . Triggered . | . . . . . . . . . . . . . . Disarmed . | . . . . . . . . . . . . . . Reprogrammed . | . . . . . . . . . . . . . . Reused . | . . . . . . . . . . . . . . Traps Extracted . | . . . . . . . . . . . . . . Installed . | . . . . . . . . . . . . . . Triggered . | . . . . . . . . . . . . . . Machines | -11 -10 -10 -10 -9 -8 -7 -7 -7 -7 -7 -7 -6 -6 ---------- Run | Yrd Mat Min Exi Min Mat Fac Was Fac Low Low Zio Pro Fac Machines Disabled 11 | . . . . . 1 . . 4 . . . . 6 Max in Single Turn 3 | . . . . . 1 . . 1 . . . . 3 Garrison Access 2 | . . . . . 1 . . . . . . . 1 Machines Repaired . | . . . . . . . . . . . . . . Machines Dismantled . | . . . . . . . . . . . . . . Machines Sabotaged . | . . . . . . . . . . . . . . Overloaded Fab Kills . | . . . . . . . . . . . . . . Hacking | -11 -10 -10 -10 -9 -8 -7 -7 -7 -7 -7 -7 -6 -6 --------- Run | Yrd Mat Min Exi Min Mat Fac Was Fac Low Low Zio Pro Fac Machines Accessed 32 | . 6 . 2 . 6 1 . 4 1 1 . . 11 Terminals 19 | . 6 . . . 3 . . 4 . . . . 6 Fabricators 2 | . . . . . . . . . . . . . 2 Repair Stations . | . . . . . . . . . . . . . . Recycling Units . | . . . . . . . . . . . . . . Scanalyzers 3 | . . . . . 2 . . . . . . . 1 Garrison Access 4 | . . . . . 1 1 . . . . . . 2 Total Hacks 67 | . 21 . 2 . 15 1 . 5 1 1 . . 21 Successful 31 | . 9 . 2 . 12 . . 2 1 1 . . 4 Failed 36 | . 12 . . . 3 1 . 3 . . . . 17 Catastrophic 7 | . . . . . 1 1 . . . . . . 5 Database Lockouts . | . . . . . . . . . . . . . . Manual 22 | . 15 . . . 4 . . 1 . . . . 2 Terminals 46 | . 21 . . . 9 . . 5 . . . . 11 Fabricators 2 | . . . . . . . . . . . . . 2 Repair Stations . | . . . . . . . . . . . . . . Recycling Units . | . . . . . . . . . . . . . . Scanalyzers 8 | . . . . . 5 . . . . . . . 3 Garrison Access 7 | . . . . . 1 1 . . . . . . 5 Terminal Hacks 13 | . 3 . 2 . 3 . . 2 1 1 . . 1 Record 2 | . . . 2 . . . . . . . . . . Prototype ID Bank 1 | . . . . . 1 . . . . . . . . Open Door 2 | . . . . . . . . . 1 1 . . . Branch Access Points 1 | . . . . . . . . 1 . . . . . Alert Level 3 | . . . . . 1 . . 1 . . . . 1 Locate Traps 3 | . 3 . . . . . . . . . . . . Hauler Manifests 1 | . . . . . 1 . . . . . . . . Fabricator Hacks . | . . . . . . . . . . . . . . Repair Station Hacks . | . . . . . . . . . . . . . . Recycling Unit Hacks . | . . . . . . . . . . . . . . Scanalyzer 6 | . . . . . 5 . . . . . . . 1 Insert Component 1 | . . . . . 1 . . . . . . . . Analyze 1 | . . . . . 1 . . . . . . . . Retrieve Study 4 | . . . . . 3 . . . . . . . 1 Garrison Access Hacks 2 | . . . . . 1 . . . . . . . 1 Seal Access 2 | . . . . . 1 . . . . . . . 1 Unauthorized Hacks 10 | . 6 . . . 3 . . . . . . . 1 Terminals 10 | . 6 . . . 3 . . . . . . . 1 Track 2 | . . . . . 2 . . . . . . . . Botnet 3 | . 1 . . . 1 . . . . . . . 1 Skim 5 | . 5 . . . . . . . . . . . . Fabricators . | . . . . . . . . . . . . . . Repair Stations . | . . . . . . . . . . . . . . Recycling Units . | . . . . . . . . . . . . . . Scanalyzers . | . . . . . . . . . . . . . . Garrison Access . | . . . . . . . . . . . . . . Data Cores Recovered . | . . . . . . . . . . . . . . Used . | . . . . . . . . . . . . . . Hacking Detections 20 | . 4 . . . 3 1 . 4 . . . . 8 Full Trace Events 1 | . . . . . . . . . . . . . 1 Feedback Events . | . . . . . . . . . . . . . . Feedback Blocked . | . . . . . . . . . . . . . . Robot Schematics Acquired . | . . . . . . . . . . . . . . Robots Built . | . . . . . . . . . . . . . . Authchips . | . . . . . . . . . . . . . . Time . | . . . . . . . . . . . . . . Total Robot Build Rating . | . . . . . . . . . . . . . . Part Schematics Acquired 1 | . . . . . 1 . . . . . . . . Parts Built . | . . . . . . . . . . . . . . Authchips . | . . . . . . . . . . . . . . Time . | . . . . . . . . . . . . . . Total Part Build Rating . | . . . . . . . . . . . . . . Part Studies Acquired 4 | . . . . . 3 . . . . . . . 1 Parts Repaired . | . . . . . . . . . . . . . . Time . | . . . . . . . . . . . . . . Parts Recycled . | . . . . . . . . . . . . . . Recycled Matter . | . . . . . . . . . . . . . . Retrieved Matter . | . . . . . . . . . . . . . . Retrieved Components . | . . . . . . . . . . . . . . Parts Scanalyzed 1 | . . . . . 1 . . . . . . . . Part Schematics Acquired 1 | . . . . . 1 . . . . . . . . Parts Damaged . | . . . . . . . . . . . . . . Bothacking | -11 -10 -10 -10 -9 -8 -7 -7 -7 -7 -7 -7 -6 -6 ------------ Run | Yrd Mat Min Exi Min Mat Fac Was Fac Low Low Zio Pro Fac Used RIF Installer . | . . . . . . . . . . . . . . Robots Hacked . | . . . . . . . . . . . . . . Non-combat . | . . . . . . . . . . . . . . Combat . | . . . . . . . . . . . . . . Robot Hacks Applied . | . . . . . . . . . . . . . . Relay Couplers Released . | . . . . . . . . . . . . . . Fabnet Peak Effective % . | . . . . . . . . . . . . . . Robots Rewired . | . . . . . . . . . . . . . . Allies Hacked 2 | . . . . . . . . 2 . . . . . Hacks Repelled . | . . . . . . . . . . . . . . Allies | -11 -10 -10 -10 -9 -8 -7 -7 -7 -7 -7 -7 -6 -6 -------- Run | Yrd Mat Min Exi Min Mat Fac Was Fac Low Low Zio Pro Fac Total Allies 25 | . . . . . . . 19 . . . 6 . . Largest Group 19 | . . . . . . . 19 7 . . 6 6 . Highest-Rated Group 475 | . . . . . . . 475 207 . . 175 175 . Highest-Rated Ally 51 | . . . . . . . 35 31 . . 51 51 . Total Orders . | . . . . . . . . . . . . . . Ally Attacks 235 | . . . . . . . 153 59 . . . 23 . Total Damage 6548 | . . . . . . . 5016 898 . . . 634 . Kills 30 | . . . . . . . 13 13 . . . 4 . Allies Corrupted . | . . . . . . . . . . . . . . Allies Melted . | . . . . . . . . . . . . . . Intel | -11 -10 -10 -10 -9 -8 -7 -7 -7 -7 -7 -7 -6 -6 ------- Run | Yrd Mat Min Exi Min Mat Fac Was Fac Low Low Zio Pro Fac Active Infowar (turns) 9943 | . . . . . 1344 167 317 1754 434 960 1255 566 3146 Optics 7371 | . . . . . 1114 167 317 1754 434 453 . . 3132 Sensors 2462 | . . . . . . . . . 422 960 76 556 448 IFF 1873 | . . . . . . . . . . . . . 1873 Structural 5014 | . . . . . 230 . . . . 480 1255 566 2483 Robot Analysis Total . | . . . . . . . . . . . . . . Derelict Logs Recovered 3 | . . . . . . . . . 1 . 1 1 . Drone Launches . | . . . . . . . . . . . . . . Drone Recoveries . | . . . . . . . . . . . . . . Exploration | -11 -10 -10 -10 -9 -8 -7 -7 -7 -7 -7 -7 -6 -6 ------------- Run | Yrd Mat Min Exi Min Mat Fac Was Fac Low Low Zio Pro Fac Turns Passed 12344 | 62 1335 116 490 135 1607 167 317 1754 434 960 1255 566 3146 Spaces Moved 7280 | 43 729 54 256 71 844 116 221 936 335 478 839 254 2104 Core 36 | 4 . . . . . . . . . . . . 32 Treads . | . . . . . . . . . . . . . . Legs 7142 | 39 729 54 256 71 844 116 221 936 335 478 839 254 1970 Wheels 102 | . . . . . . . . . . . . . 102 Hover . | . . . . . . . . . . . . . . Flight . | . . . . . . . . . . . . . . Fastest Speed 50 | 50 120 190 190 190 116 116 116 113 115 115 115 115 50 Average Speed 142 | 113 163 190 190 190 117 116 116 162 115 179 147 176 120 Slowest Speed 260 | 120 190 190 190 190 190 116 116 186 115 185 185 185 260 Overloaded Moves . | . . . . . . . . . . . . . . Propulsion Burnouts . | . . . . . . . . . . . . . . Robots Hopped . | . . . . . . . . . . . . . . Potential Cave-ins 1 | . . . . . . . . . . 1 . . . Cave-ins Triggered 1 | . . . . . . . . . . 1 . . . Exploration Rate (%) 48 | 3 97 6 61 23 65 5 81 32 52 63 84 41 69 Regions Visited 13 Branch Regions 7 Pre-discovered Areas 3 | . 1 . 1 . . . . . . . 1 . . Known Exits Taken 2 | . . . . . 1 . . 1 . . . . . Unknown Exits Taken 9 | 1 1 1 1 1 . . . . 1 1 1 1 . Scrap Searched 5 | . . . . 1 . . . . . 1 2 1 . Spaces Dug 40 | . . . . . . . . 6 . 9 . 5 20 Terrain Destroyed 215 | . 3 . . . . . 14 40 . 28 . 41 89 Melee . | . . . . . . . . . . . . . . Projectile 100 | . . . . . . . 1 14 . 23 . 13 49 AOE 115 | . 3 . . . . . 13 26 . 5 . 28 40 Terrain Rammed . | . . . . . . . . . . . . . . Walls Destroyed . | . . . . . . . . . . . . . . Machines Disabled . | . . . . . . . . . . . . . . Actions | -11 -10 -10 -10 -9 -8 -7 -7 -7 -7 -7 -7 -6 -6 --------- Run | Yrd Mat Min Exi Min Mat Fac Was Fac Low Low Zio Pro Fac Total 8708 | 51 821 64 261 74 1246 149 274 1107 378 542 858 327 2556 Wait 711 | . 26 . . . 186 17 21 90 37 16 12 34 272 Move 7267 | 42 728 53 255 70 843 116 220 935 334 476 838 253 2104 Hop . | . . . . . . . . . . . . . . Pick Up 87 | 1 17 1 1 2 24 4 6 11 . 1 1 3 15 Fast Attach 43 | 6 3 . 2 . 4 1 . 6 . . 3 2 16 Attach 24 | . . . . . 15 2 . . . 3 . . 4 Detach 9 | . 1 . . . 1 1 . . . . 2 1 3 Swap 61 | 1 4 3 . . 19 2 4 6 2 3 . 3 14 Drop 110 | . 10 4 3 2 27 4 8 17 . 2 2 5 26 Fire 393 | 1 31 3 . . 127 2 15 42 4 40 . 26 102 Melee . | . . . . . . . . . . . . . . Ram . | . . . . . . . . . . . . . . Kick 1 | . 1 . . . . . . . . . . . . Crush . | . . . . . . . . . . . . . . Escape Stasis 1 | . . . . . . . . . . 1 . . . Rewire 1 | . . . . . . . . . 1 . . . . Trap . | . . . . . . . . . . . . . . Miscellaneous . | . . . . . . . . . . . . . . Route ------- -11/Scrapyard -10/Materials (discovered 5 exits: [*Mat x3] / [*Min] / [*Sub]) -10/Mines -10/Exiles -9/Mines -8/Materials (discovered 3 exits: *Fac x3) -7/Factory -7/Waste -7/Factory (discovered 3 exits: *Fac / *Low x2) -7/Lower Caves -7/Lower Caves (discovered 2 exits: *Fac / [*Zio]) -7/Zion -6/Proximity Caves -6/Factory (discovered 3 exits: *Fac / [*Low x2]) History --------- Turn | Location | Event 17 | -11/Scrapyard | Discovered new exit (range 16) 63 | -11/Scrapyard | Entered Materials 64 | -10/Materials | Met a group of wandering Federalists 159 | -10/Materials | Discovered new exit (range 10) 317 | -10/Materials | Build established: Mutant 341 | -10/Materials | Discovered new exit (range 16) 376 | -10/Materials | Discovered new exit (range 7) 601 | -10/Materials | Discovered new exit (range 10) 895 | -10/Materials | Discovered new exit (range 15) 1091 | -10/Materials | Learned Storage security intel 1123 | -10/Materials | Learned location of Subcaves (-10) 1146 | -10/Materials | Loaded intel: 15 trap records 1170 | -10/Materials | Learned location of 2 exits from Materials 1190 | -10/Materials | Learned location of 2 exits from Subcaves 1398 | -10/Materials | Entered Mines 1439 | -10/Mines | Deemed a non-threat by the Exiles lab entrance 1441 | -10/Mines | Discovered new exit (range 5) 1514 | -10/Mines | Entered Exiles 1562 | -10/Exiles | Met 8R-AWN 1592 | -10/Exiles | Met EX-HEX 1677 | -10/Exiles | Met EX-DEC 1686 | -10/Exiles | Learned location of Zion (-7) 1717 | -10/Exiles | Met EX-BIN 1980 | -10/Exiles | Discovered new exit (range 14) 2004 | -10/Exiles | Entered Mines 2113 | -9/Mines | Discovered new exit (range 15) 2139 | -9/Mines | Entered Materials 2139 | -8/Materials | Evolved 4 slots: Propulsion x2, Utility x2 2140 | -8/Materials | Identified exit to Factory 2165 | -8/Materials | Build established: Scavenger-Mutant 2802 | -8/Materials | Discovered exit to Factory (range 4) 3746 | -8/Materials | Entered Factory 3746 | -7/Factory | Evolved 2 slots: Propulsion x1, Utility x1 3913 | -7/Factory | Sucked down chute 3913 | -7/Factory | Entered Waste 3916 | -7/Waste | Spotted C-40 Crusher 3918 | -7/Waste | Spotted C-40 Crusher 3919 | -7/Waste | Spotted C-40 Crusher 3929 | -7/Waste | Warlord forces began an assault 3942 | -7/Waste | Destroyed C-40 Crusher 3945 | -7/Waste | Allies destroyed C-40 Crusher 3954 | -7/Waste | Allies destroyed C-40 Crusher 3961 | -7/Waste | Spotted C-40 Crusher 3968 | -7/Waste | Allies destroyed C-40 Crusher 3985 | -7/Waste | Lost 7 allies 4065 | -7/Waste | Spotted C-40 Crusher 4097 | -7/Waste | Spotted C-40 Crusher 4103 | -7/Waste | Allies destroyed C-40 Crusher 4103 | -7/Waste | Destroyed C-40 Crusher 4134 | -7/Waste | Lost 4 allies 4189 | -7/Waste | Discovered new exit (range 12) 4230 | -7/Waste | Entered Factory 4230 | -7/Factory | Accompanied by 7 allies 5161 | -7/Factory | P-60 Hacker assimilated allied 8M-112(g) 5204 | -7/Factory | Lost 3 allies 5320 | -7/Factory | Garrison activated, responded to threat 5371 | -7/Factory | Identified exit to Lower Caves 5685 | -7/Factory | Discovered new exit (range 17) 5984 | -7/Factory | Entered Lower Caves 6087 | -7/Lower Caves | Learned Factory stockpile data 6347 | -7/Lower Caves | Discovered new exit (range 12) 6418 | -7/Lower Caves | Entered another Lower Caves area 6595 | -7/Lower Caves | Discovered new exit (range 3) 6743 | -7/Lower Caves | Build established: Mutant 6871 | -7/Lower Caves | Crushed by falling debris 6872 | -7/Lower Caves | System corruption reached 10% 6902 | -7/Lower Caves | Lost 3 parts (1p2u) 7211 | -7/Lower Caves | Encountered a Warlord checkpoint 7363 | -7/Lower Caves | Discovered new exit (range 3) 7378 | -7/Lower Caves | Entered Zion 7433 | -7/Zion | System corruption cleaned by Quarantine Array 7510 | -7/Zion | Gained Derelict followers 7782 | -7/Zion | Learned Factory stockpile data 7847 | -7/Zion | Met Imprinter 8123 | -7/Zion | Gained Derelict followers 8236 | -7/Zion | Build established: Derelict-Mutant 8599 | -7/Zion | Discovered new exit (range 11) 8633 | -7/Zion | Entered Proximity Caves 8633 | -6/Proximity Caves | Accompanied by 6 allies 8763 | -6/Proximity Caves | Learned Factory emergency access door positions 8854 | -6/Proximity Caves | Lost 5 allies 9190 | -6/Proximity Caves | Discovered new exit (range 8) 9199 | -6/Proximity Caves | Entered Factory 9199 | -6/Factory | Evolved 2 slots: Propulsion x1, Utility x1 9609 | -6/Factory | Build established: Mutant 9684 | -6/Factory | Spotted B-75 Beast 9981 | -6/Factory | Discovered new exit (range 15) 10091 | -6/Factory | Cargo convoy interrupted 10104 | -6/Factory | Discovered new exit (range 5) 11955 | -6/Factory | Lost 4 parts (4n) 12318 | -6/Factory | Discovered new exit (range 20) 12336 | -6/Factory | Core integrity fell below 50% 12337 | -6/Factory | Identified exit to Factory 12343 | -6/Factory | Core integrity fell below 20% 12345 | -6/Factory | Destroyed by H-61 Shepherd with Heavy Assault Cannon Last Messages --------------- 12323_ Arm. Leg destroyed. 12324_ G-50 Soldier knocked back. 12325_ Penetrated by Slug. 12325_ Imp. Sensor Array destroyed. 12326_ Lrn. Missile Launcher destroyed. 12327_ Penetrated by Slug. 12327_ Antimatter Cannon destroyed. 12327_ Com. Wheel destroyed. 12327_ Flexi-carbon Leg destroyed. 12328_ Dropped Hcp. Storage Unit. 12328_ Critical hit (Burn: +37). 12329_ Acquired 19 matter. 12333_ G-50 Soldier knocked back. 12337_ EXIT=IDENTIFIED: FACTORY 12341_ Acquired VTOL Module. 12341_ VTOL Module destroyed. 12342_ The unstable cave ceiling collapses. 12343_ Penetrated by Slug. 12343_ Imp. Signal Interpreter destroyed. 12343_ Knocked back. Map ----- +----------------------------------------------------+ | ????????????????????????# #???????????? | | ????????????????????????# #???????????? | | ????????????????????????#########+####???????????? | | ????????????????????????????????# #??????????????? | | ????????????????????????????????# #??????????????? | | ????????????????????????????????# #??????????????? | | ????????????????????????????????# ################ | | ???????????????????????########## ##!!!! | | ???????????????????????# = # !]!=+ / " " " " | | ???????????????????????# """ [# ]]]#! " " " " | | ???????????????????????# """ # *!!# " " " " | | ???????????????????????# """ !# ]# " " " " | | ???????????????????????# # # " " " " | | ???????????????????????# """ ! # + " " " " | | ???????????????????????# """ # " " " " | | ???????????????????????# """ ! s#"" " " " " | | ???????????????????????# # % #"T " " " " | | ???????????????????????######## %[% #"" | | ?????????????????????????# % gggs # ! | | ?????????????????????????# %############ | | ?????????????????????????# #??????????? | | ?????????????????????????# H % #??????????? | | ??????????????????######## #??????????? | | ??????????????????# ###????????? | | ????????????"" ??# < ########## | | ?????????# """ ""# @ | | ?????????# + k | | ?????????# """ # % % | | ???????????""" ?# | | ???????????""" ???# %* [ | | ???????????? ?????######### ##########? | | ???????????????????????# # #???????? | | ???????????????????????# """" # """#???????? | | ???????????????????????# """" # [ T"#???????? | | ???????????????????????# """" # """#???????? | | ???????????????????????# """" # ! #???????? | | ???????????????????????# """" # """ #???????? | | ???????????????????????# """" # """ [#???????? | | ???????????????????????# """" # """ #???????? | | ???????????????????????# ???? #?? ???!#???????? | | ???????????????????????####????##????????????????? | | ?????????????????????????????????????????????????? | | ?????????????????????????????????????????????????? | | | | | | | | | | | | | | | +----------------------------------------------------+ Best States ------------- Heat Dissipation 64 Energy Generation 18 Energy Capacity 300 Matter Stores 300 Matter Capacity 300 Sight Range 22 Robot Scan Range 15 Terrain Scan Density 10 Armor Coverage 300 Evasion (%) 55 Targeting Accuracy 8 Item Schematics ----------------- Hcp. Storage Unit | -8/Materials | Scanalyzed Robot Schematics ------------------ None Fabricated ------------ Nothing Repaired ---------- Nothing Studied --------- Grenade Launcher | -8/Materials | Hacked Titanium Leg | -8/Materials | Hacked Carbon-fiber Leg | -8/Materials | Hacked Hyp. Gauss Rifle | -6/Factory | Hacked Alien Tech Used ----------------- None Achievements -------------- Jackpot Challenges ------------ None Game ------ Seed StorageHeatBank Manual? 0 Play Time 01:36:18 Cumulative 419.0 hours Start 2025.11.03 @ 21:50:31 End 2025.11.03 @ 23:25:50 Sessions 1 Manual Loads 0 Difficulty Rogue Special Mode None Game No. 465 Rogue 465 Adventurer 0 Explorer 0 Win Type - Total 38 Types 28/0/7/3/0/0/0/0/0/0 Lore% 80 Gallery% 71 Achievement% 39 Wizard Run 0 Options --------- Layout 0 ASCII 0 Keyboard 1 Movement Numpad Keybinds 0 Fullscreen 1 Font 24/Smallcaps Map View 76x50 Zoom Use 0% Tactical HUD 1 Map Filters NONE Filters NONE Steam 1 RUN: 3115a66c-75fc-43dc-bb55-b8dd30f65211